[Event "Khanty-Mansiysk FIDE GP"]
[Site "Khanty-Mansiysk"]
[Date "2015.05.21"]
[Round "7"]
[White "Jakovenko, Dmitrij"]
[Black "Grischuk, Alexander"]
[Result "1/2-1/2"]
[ECO "D78"]
[WhiteElo "2738"]
[BlackElo "2780"]
[PlyCount "42"]
[EventDate "2015.05.14"]
[EventType "tourn"]
[EventRounds "11"]
[EventCountry "RUS"]
[EventCategory "21"]
[SourceTitle "CBM 167"]
[Source "ChessBase"]
[SourceDate "2015.07.13"]
[SourceVersion "1"]
[SourceVersionDate "2015.07.13"]
[SourceQuality "1"]
[TimeControl "40/7200:20/3600:900+30"]

1. d4 {[%emt 0:00:07]} Nf6 {[%emt 0:00:32]} 2. c4 {[%emt 0:00:09]} g6 {[%emt 0:
00:03]} 3. g3 {[%emt 0:00:06]} c6 {[%emt 0:01:56]} 4. Nf3 {[%emt 0:01:50]} Bg7
{[%emt 0:01:34]} 5. Bg2 {[%emt 0:00:42]} d5 {[%emt 0:00:14]} 6. O-O {[%emt 0:
00:12]} O-O {[%emt 0:00:23]} 7. Qb3 {[%emt 0:00:42]} Qb6 {[%emt 0:01:22]} 8.
Nc3 {[%emt 0:01:19]} Rd8 {[%emt 0:01:11]} 9. Rd1 {[%emt 0:03:39]} (9. Na4 Qa6
10. cxd5 Qxe2 11. dxc6 Nxc6 12. Re1 Qa6 13. Bd2 Nxd4 14. Nxd4 Rxd4 15. Nc5 Qb6
16. Bc3 Rd8 17. Rxe7 Qxb3 18. axb3 Nd5 19. Rd1 Bxc3 20. bxc3 Be6 21. Rxe6 fxe6
22. Nxe6 Rd6 23. Bxd5 Kh8 24. c4 Re8 25. Nd4 Rd7 26. Kg2 Kg7 27. Ra1 a6 28.
Ne6+ Kf6 29. Nc5 {1-0 (29) Ding,L (2755)-Adhiban,B (2646) Hyderabad 2015}) 9...
Bf5 {[%emt 0:01:30]} 10. Ne1 {[%emt 0:03:27]} dxc4 {[%emt 0:06:06]} 11. Qxc4 {
[%emt 0:00:52]} Na6 {[%emt 0:00:25]} 12. e4 {[%emt 0:00:43]} Be6 {[%emt 0:03:
32]} 13. d5 $146 {[%emt 0:11:38]} (13. Qa4 Bg4 14. Bf3 Rd7 15. Bxg4 Nxg4 16. h3
Nxf2 17. Kxf2 Rxd4 18. Rxd4 e5 19. Qb3 exd4 20. Qxb6 axb6 21. Na4 b5 22. Nb6
Re8 23. Nd3 Rxe4 24. a4 bxa4 25. Rxa4 f5 26. b3 Kf7 27. Nc4 Bf8 28. Nce5+ Ke6
29. Nxc6 Nc5 30. Nxc5+ Bxc5 31. Rc4 b6 32. Kf3 Re1 33. Bd2 Rb1 34. Nxd4+ Kd5
35. Be3 Rf1+ 36. Ke2 Rb1 37. Rc3 Ke4 38. Nf3 Bxe3 39. Rxe3+ Kd5 40. Re5+ Kd6
41. Rb5 Kc6 42. Nd4+ Kd6 {Gajewski,G (2569)-Jankovic,A (2564) Cappelle la
Grande 2011 1-0}) 13... cxd5 {[%emt 0:01:22]} 14. exd5 {[%emt 0:00:09]} Bg4 {
[%emt 0:05:18]} 15. Be3 {[%emt 0:00:12]} Qxb2 {[%emt 0:01:32]} 16. Nd3 {
[%emt 0:01:47]} Qa3 {[%emt 0:00:33]} 17. Nb5 {[%emt 0:00:04] The players
started a repetition on move 17 and the draw was sealed} Qa5 {[%emt 0:00:08]}
18. Bd2 {[%emt 0:00:06]} Qb6 {[%emt 0:00:13]} 19. Be3 {[%emt 0:00:05]} Qa5 {
[%emt 0:00:17]} 20. Bd2 {[%emt 0:00:04]} Qb6 {[%emt 0:00:06]} 21. Be3 {[%emt 0:
00:02]} Qa5 {[%emt 0:00:05]} 1/2-1/2

[Event "Khanty-Mansiysk FIDE GP"]
[Site "Khanty-Mansiysk"]
[Date "2015.05.24"]
[Round "9"]
[White "Nakamura, Hikaru"]
[Black "Grischuk, Alexander"]
[Result "1/2-1/2"]
[ECO "D85"]
[WhiteElo "2799"]
[BlackElo "2780"]
[PlyCount "61"]
[EventDate "2015.05.14"]
[EventType "tourn"]
[EventRounds "11"]
[EventCountry "RUS"]
[EventCategory "21"]
[SourceTitle "CBM 167"]
[Source "ChessBase"]
[SourceDate "2015.07.13"]
[SourceVersion "1"]
[SourceVersionDate "2015.07.13"]
[SourceQuality "1"]
[TimeControl "40/7200:20/3600:900+30"]

1. d4 {[%emt 0:00:05]} Nf6 {[%emt 0:00:12]} 2. c4 {[%emt 0:00:06]} g6 {[%emt 0:
00:36]} 3. Nc3 {[%emt 0:00:07]} d5 {[%emt 0:00:19]} 4. cxd5 {[%emt 0:00:07]}
Nxd5 {[%emt 0:00:04]} 5. e4 {[%emt 0:00:07]} Nxc3 {[%emt 0:00:04]} 6. bxc3 {
[%emt 0:00:05]} Bg7 {[%emt 0:00:05]} 7. Qa4+ {[%emt 0:00:06]} Qd7 {[%emt 0:02:
35]} 8. Qa3 {[%emt 0:00:16]} O-O {[%emt 0:07:30]} 9. Nf3 {[%emt 0:00:41]} b6 {
[%emt 0:06:11]} 10. Bd3 {[%emt 0:01:20]} c5 {[%emt 0:04:00]} 11. O-O {[%emt 0:
01:10]} Nc6 {[%emt 0:21:54]} 12. Bb5 $146 {[%emt 0:00:52]} (12. d5 Na5 13. Bg5
e6 14. Rad1 e5 15. Rfe1 Nb7 16. Nd2 f6 17. Be3 Qc7 18. Qb3 Kh8 19. Rf1 Bd7 20.
Kh1 Nd6 21. Qc2 c4 22. Be2 b5 23. f4 exf4 24. Bxf4 Qc5 25. Bg3 Rae8 26. Bf2 Qc7
27. Bd4 f5 28. Bxg7+ Kxg7 29. Bf3 fxe4 30. Nxe4 {1/2-1/2 (30) Gonzalez Velez,F
(2400)-Vidarte Morales,A (2370) Montcada 1997}) 12... cxd4 {[%emt 0:18:28]} 13.
cxd4 {[%emt 0:03:00]} a6 {[%emt 0:02:38]} 14. Be3 {[%emt 0:20:51]} Bb7 {
[%emt 0:05:36]} 15. Be2 {[%emt 0:00:12]} e6 {[%emt 0:12:31]} 16. Qb3 {[%emt 0:
13:36]} b5 {[%emt 0:06:32]} 17. a4 {[%emt 0:00:46]} Na7 {[%emt 0:07:50]} 18.
Ne5 {[%emt 0:02:07]} Qd6 {[%emt 0:02:17]} 19. Bf3 {[%emt 0:04:17]} Nc6 {
[%emt 0:06:55]} 20. Nxc6 {[%emt 0:01:23]} Bxc6 {[%emt 0:00:47]} 21. Rac1 {
[%emt 0:05:04]} Rac8 {[%emt 0:00:56]} 22. d5 {[%emt 0:02:14]} Bd7 {[%emt 0:00:
41]} 23. axb5 {[%emt 0:00:09]} axb5 {[%emt 0:00:54]} 24. g3 {[%emt 0:02:43]}
exd5 {[%emt 0:00:37]} 25. exd5 {[%emt 0:00:20]} h5 {[%emt 0:01:18]} 26. Bd2 {
[%emt 0:03:01]} Rxc1 {[%emt 0:00:10]} 27. Rxc1 {[%emt 0:00:06]} Ra8 {[%emt 0:
01:09]} 28. Bb4 {[%emt 0:03:58]} Qe5 {[%emt 0:00:01]} 29. h4 {[%emt 0:01:45]}
Ra1 {[%emt 0:00:17]} 30. Rxa1 {[%emt 0:00:04]} Qxa1+ {[%emt 0:00:04]} 31. Kg2 {
[%emt 0:00:07]} 1/2-1/2

[Event "Paris GCT Rapid"]
[Site "Paris"]
[Date "2017.06.22"]
[Round "4"]
[White "Topalov, Veselin"]
[Black "Grischuk, Alexander"]
[Result "0-1"]
[ECO "C11"]
[WhiteElo "2749"]
[BlackElo "2761"]
[PlyCount "136"]
[EventDate "2017.06.21"]
[EventType "tourn (rapid)"]
[EventRounds "9"]
[EventCountry "FRA"]
[EventCategory "22"]
[SourceTitle "CBM 179"]
[Source "ChessBase"]
[SourceDate "2017.07.12"]
[SourceVersion "1"]
[SourceVersionDate "2017.07.12"]
[SourceQuality "1"]
[TimeControl "1500"]

1. e4 {[%emt 0:00:00]} e6 {[%emt 0:00:00]} 2. d4 {[%emt 0:00:00]} d5 {[%emt 0:
00:00]} 3. Nc3 {[%emt 0:00:00]} Nf6 {[%emt 0:00:00]} 4. e5 {[%emt 0:00:00]}
Nfd7 {[%emt 0:00:00]} 5. f4 {[%emt 0:00:00]} c5 {[%emt 0:00:00]} 6. Nf3 {
[%emt 0:00:00]} Nc6 {[%emt 0:00:00]} 7. Be3 {[%emt 0:00:00]} cxd4 {[%emt 0:00:
00]} 8. Nxd4 {[%emt 0:00:00]} Qb6 {[%emt 0:00:00]} 9. Qd2 {[%emt 0:00:00]} Qxb2
{[%emt 0:00:00]} 10. Rb1 {[%emt 0:00:00]} Qa3 {[%emt 0:00:00]} 11. Bb5 {
[%emt 0:00:32]} Nxd4 {[%emt 0:00:00]} 12. Bxd4 {[%emt 0:00:00]} a6 {[%emt 0:00:
00]} 13. Rb3 {[%emt 0:00:00]} (13. Bxd7+ Bxd7 14. Rb3 Qe7 15. Rxb7 Qd8 16. O-O
Rb8 17. Rxb8 Qxb8 18. f5 Qc8 19. f6 gxf6 20. Qf4 Qc4 21. exf6 Rg8 22. Nxd5 exd5
23. Re1+ Kd8 24. Qb8+ Bc8 25. Qa7 Be6 26. Bb6+ Kc8 27. Qa8+ Kd7 28. Qb7+ Kd6
29. Ba7 Rxg2+ 30. Kxg2 Qg4+ 31. Kh1 Qf3+ 32. Kg1 Qg4+ 33. Kh1 Qf3+ {1/2-1/2 
(33) Caruana,F (2795)-Robson,R (2663) Saint Louis 2016}) 13... Qe7 {[%emt 0:00:
00]} 14. Ba4 {[%emt 0:00:00]} Qd8 {[%emt 0:02:07]} 15. Bb6 {[%emt 0:00:58]}
Qh4+ {[%emt 0:00:00]} 16. g3 {[%emt 0:00:50]} Qg4 {[%emt 0:04:15] [#]} 17. O-O
$146 {[%emt 0:05:13]} (17. Nd1 Be7 18. Nf2 Qg6 19. Rc3 O-O 20. Bxd7 Bxd7 21.
Rc7 Bd8 22. Rxd7 Bxb6 23. Rxb7 Rab8 24. Rxb8 Rxb8 25. O-O h5 26. Kg2 Rc8 27.
Nd3 Qe4+ 28. Kh3 Be3 29. Qe2 Qf5+ 30. Kg2 d4 31. Rb1 g6 32. Rb2 a5 33. a4 Kg7
34. h3 Qe4+ 35. Qf3 Qxf3+ 36. Kxf3 Rc4 37. Ra2 g5 38. fxg5 Bxg5 39. h4 Be3 40.
Ke4 Kh6 41. Kf3 Kg7 42. Ke4 Kg6 43. Nf4+ Bxf4 44. gxf4 d3+ 45. Kxd3 Rxf4 46. c4
Kf5 {Grischuk,A (2763)-Morozevich,A (2770) Astana 2012 1-0}) 17... Be7 {
[%emt 0:00:28]} 18. f5 {[%emt 0:00:12]} O-O {[%emt 0:02:44]} 19. Rf4 {[%emt 0:
00:16]} Bg5 {[%emt 0:00:24]} 20. Rxg4 {[%emt 0:00:50]} Bxd2 {[%emt 0:00:00]}
21. Bxd7 {[%emt 0:00:00]} Bxd7 {[%emt 0:00:00]} 22. f6 {[%emt 0:00:00]} g6 {
[%emt 0:00:11]} 23. Nd1 {[%emt 0:02:13]} Rfc8 {[%emt 0:00:53]} 24. c3 {[%emt 0:
00:00]} h5 {[%emt 0:04:20]} 25. Rd4 {[%emt 0:00:00]} Bh6 {[%emt 0:00:00]} 26.
Kf2 {[%emt 0:00:00]} a5 {[%emt 0:01:25]} 27. Rb2 {[%emt 0:01:06]} a4 {[%emt 0:
00:25]} 28. Rd3 {[%emt 0:01:22]} a3 {[%emt 0:00:35]} 29. Rb1 {[%emt 0:00:21]}
Ba4 {[%emt 0:03:37]} 30. Ne3 {[%emt 0:00:00]} Rc6 {[%emt 0:00:06]} 31. Bd4 {
[%emt 0:02:29]} b5 {[%emt 0:00:00]} 32. h4 {[%emt 0:00:23]} Rac8 {[%emt 0:00:
32]} 33. Ke2 {[%emt 0:00:00]} Kf8 {[%emt 0:00:05]} 34. Kf2 {[%emt 0:02:19]} Ke8
{[%emt 0:00:00]} 35. Ke2 {[%emt 0:00:00]} Kd7 {[%emt 0:00:17]} 36. Kf2 {
[%emt 0:00:00]} Kc7 {[%emt 0:00:14]} 37. Kf3 {[%emt 0:00:00]} Kb7 {[%emt 0:00:
04]} 38. Kf2 {[%emt 0:00:47]} Ka6 {[%emt 0:00:00]} 39. Kf3 {[%emt 0:00:00]}
R8c7 {[%emt 0:00:18]} 40. Kf2 {[%emt 0:00:00]} Rb7 {[%emt 0:00:03]} 41. g4 {
[%emt 0:00:07]} hxg4 {[%emt 0:00:29]} 42. Kg3 {[%emt 0:00:00]} Bf8 {[%emt 0:00:
21]} 43. Kxg4 {[%emt 0:00:09]} b4 {[%emt 0:00:00]} 44. cxb4 {[%emt 0:00:00]}
Rxb4 {[%emt 0:00:00]} 45. Rxb4 {[%emt 0:00:03]} Bxb4 {[%emt 0:00:00]} 46. Kg5 {
[%emt 0:00:07]} Bf8 {[%emt 0:00:02]} 47. h5 {[%emt 0:00:39]} gxh5 {[%emt 0:00:
00]} 48. Kxh5 {[%emt 0:00:00]} Rc1 {[%emt 0:00:01]} 49. Rd2 {[%emt 0:00:08]}
Rh1+ {[%emt 0:00:00]} 50. Kg4 {[%emt 0:00:00]} Bb4 {[%emt 0:00:25]} 51. Rg2 {
[%emt 0:00:00]} Bb5 {[%emt 0:00:07]} 52. Rc2 {[%emt 0:00:11]} Kb7 {[%emt 0:00:
00]} 53. Bc5 {[%emt 0:00:35]} Bxc5 {[%emt 0:00:20]} 54. Rxc5 {[%emt 0:00:00]}
Be2+ {[%emt 0:00:00]} 55. Kg3 {[%emt 0:00:00]} Ra1 {[%emt 0:00:00]} 56. Rc2 {
[%emt 0:00:00]} Bb5 {[%emt 0:00:00]} 57. Kf4 {[%emt 0:00:14]} d4 {[%emt 0:00:
00]} 58. Nc4 {[%emt 0:00:00]} Bxc4 {[%emt 0:00:00]} 59. Rxc4 {[%emt 0:00:00]}
Rxa2 {[%emt 0:00:00]} 60. Rxd4 {[%emt 0:00:00]} Ra1 {[%emt 0:00:00]} 61. Rd2 {
[%emt 0:00:20]} a2 {[%emt 0:00:00]} 62. Rf2 {[%emt 0:00:00]} Kc6 {[%emt 0:00:
00]} 63. Rc2+ {[%emt 0:00:00]} Kd5 {[%emt 0:00:00]} 64. Rd2+ {[%emt 0:00:00]}
Kc4 {[%emt 0:00:00]} 65. Rf2 {[%emt 0:00:00]} Kd3 {[%emt 0:00:00]} 66. Rf3+ {
[%emt 0:00:04]} Ke2 {[%emt 0:00:00]} 67. Re3+ {[%emt 0:00:00]} Kd2 {[%emt 0:00:
00]} 68. Rf3 {[%emt 0:00:00]} Re1 {[%emt 0:00:00]} 0-1

[Event "Paris GCT Rapid"]
[Site "Paris"]
[Date "2017.06.22"]
[Round "5"]
[White "Grischuk, Alexander"]
[Black "Nakamura, Hikaru"]
[Result "0-1"]
[ECO "D02"]
[WhiteElo "2761"]
[BlackElo "2785"]
[PlyCount "180"]
[EventDate "2017.06.21"]
[EventType "tourn (rapid)"]
[EventRounds "9"]
[EventCountry "FRA"]
[EventCategory "22"]
[SourceTitle "CBM 179"]
[Source "ChessBase"]
[SourceDate "2017.07.12"]
[SourceVersion "1"]
[SourceVersionDate "2017.07.12"]
[SourceQuality "1"]
[TimeControl "1500"]

1. d4 {[%emt 0:00:00]} Nf6 {[%emt 0:00:00]} 2. Bf4 {[%emt 0:00:00]} e6 {
[%emt 0:00:00]} 3. e3 {[%emt 0:00:00]} c5 {[%emt 0:00:00]} 4. Nf3 {[%emt 0:00:
19]} d5 {[%emt 0:00:07]} 5. Nbd2 {[%emt 0:00:21]} Nc6 {[%emt 0:00:00]} 6. c3 {
[%emt 0:00:00]} cxd4 {[%emt 0:00:00]} 7. exd4 {[%emt 0:00:00]} Nh5 {[%emt 0:00:
00]} 8. Be3 {[%emt 0:00:00]} Bd6 {[%emt 0:00:16]} 9. g3 {[%emt 0:00:00]} O-O {
[%emt 0:00:13]} 10. Bd3 {[%emt 0:00:00]} f5 {[%emt 0:00:10]} 11. Ne5 {[%emt 0:
03:30]} Nf6 {[%emt 0:00:00]} 12. Ndf3 {[%emt 0:01:13]} Bd7 {[%emt 0:00:49]} 13.
Bf4 {[%emt 0:03:10]} Be8 {[%emt 0:00:00]} 14. Qe2 {[%emt 0:00:00]} Qe7 {
[%emt 0:01:22]} 15. Nxc6 {[%emt 0:02:19]} bxc6 {[%emt 0:00:00]} 16. Bxd6 {
[%emt 0:00:00]} Qxd6 {[%emt 0:00:00]} 17. Qe5 {[%emt 0:00:00]} Qd7 {[%emt 0:01:
09]} 18. Qf4 {[%emt 0:00:20]} Qb7 {[%emt 0:00:52]} 19. Rb1 {[%emt 0:00:16]} Bh5
{[%emt 0:01:08]} 20. Ne5 {[%emt 0:00:04]} Qc7 {[%emt 0:00:30]} 21. O-O {
[%emt 0:01:21]} c5 {[%emt 0:00:00]} 22. Rfe1 {[%emt 0:00:10]} c4 {[%emt 0:03:
34]} 23. Bf1 {[%emt 0:00:00]} Rfc8 {[%emt 0:00:00]} 24. b3 {[%emt 0:03:52]}
cxb3 {[%emt 0:00:00]} 25. Rxb3 {[%emt 0:00:00]} Rab8 {[%emt 0:00:10]} 26. c4 {
[%emt 0:00:17]} Rxb3 {[%emt 0:05:10]} 27. axb3 {[%emt 0:00:00]} Rb8 {[%emt 0:
00:00]} 28. Rc1 {[%emt 0:01:54]} Rc8 {[%emt 0:02:39]} 29. c5 {[%emt 0:01:24]}
Be8 {[%emt 0:00:00]} 30. Ba6 {[%emt 0:01:12]} Rb8 {[%emt 0:00:02]} 31. Nd3 {
[%emt 0:00:00]} Qxf4 {[%emt 0:01:22]} 32. Nxf4 {[%emt 0:00:00]} Bc6 {[%emt 0:
00:00]} 33. Nxe6 {[%emt 0:00:00]} Kf7 {[%emt 0:01:29]} 34. Ng5+ {[%emt 0:00:12]
} Ke7 {[%emt 0:00:00]} 35. Nf3 {[%emt 0:00:46]} Kd8 {[%emt 0:01:15]} 36. Ne5 {
[%emt 0:00:47]} Kc7 {[%emt 0:00:00]} 37. Bd3 {[%emt 0:00:02]} Rxb3 {[%emt 0:01:
10]} 38. Ra1 {[%emt 0:00:00]} Kb7 {[%emt 0:00:00]} 39. Bxf5 {[%emt 0:00:40]}
Bb5 {[%emt 0:00:00]} 40. Nf7 {[%emt 0:00:16]} Rb4 {[%emt 0:01:01]} 41. Nd6+ Kb8
42. Kg2 {[%emt 0:00:17]} g6 {[%emt 0:00:01]} 43. Be6 {[%emt 0:00:05]} Bd3 {
[%emt 0:00:00]} 44. Ra3 {[%emt 0:00:00]} Rxd4 {[%emt 0:00:00]} 45. Rb3+ Kc7 46.
Rb7+ {[%emt 0:00:01]} Kc6 {[%emt 0:00:00]} 47. Rxa7 {[%emt 0:00:00]} Kxc5 {
[%emt 0:00:00]} 48. Nf7 {[%emt 0:00:00]} Be4+ {[%emt 0:00:00]} 49. Kh3 {
[%emt 0:00:00]} Rd2 {[%emt 0:00:00]} 50. Ng5 {[%emt 0:00:00]} Rxf2 {[%emt 0:00:
00]} 51. Nxh7 {[%emt 0:00:00]} Nxh7 {[%emt 0:00:03]} 52. Rxh7 {[%emt 0:00:00]}
g5 {[%emt 0:00:00]} 53. Rg7 {[%emt 0:00:00]} Rf6 {[%emt 0:00:00]} 54. Bxd5 {
[%emt 0:00:01]} Kxd5 {[%emt 0:00:01]} 55. Kg4 {[%emt 0:00:00]} Rf2 {[%emt 0:00:
00]} 56. Kxg5 {[%emt 0:00:00]} Ke6 {[%emt 0:00:00]} 57. g4 {[%emt 0:00:00]}
Rxh2 {[%emt 0:00:00]} 58. Ra7 {[%emt 0:00:00]} Rh8 {[%emt 0:00:00]} 59. Rg7 {
[%emt 0:00:00]} Bd5 {[%emt 0:00:00]} 60. Rg6+ {[%emt 0:00:00]} Ke5 {[%emt 0:00:
00]} 61. Rg7 {[%emt 0:00:00]} Be6 {[%emt 0:00:00]} 62. Rg6 {[%emt 0:00:00]} Rh1
{[%emt 0:00:00]} 63. Rg7 {[%emt 0:00:00]} Bxg4 {[%emt 0:00:00]} 64. Re7+ {
[%emt 0:00:00]} Be6 {[%emt 0:00:00]} 65. Rg7 {[%emt 0:00:00]} Rh2 {[%emt 0:00:
00]} 66. Rg6 {[%emt 0:00:00]} Rh7 {[%emt 0:00:00]} 67. Rh6 {[%emt 0:00:00]} Rf7
{[%emt 0:00:00]} 68. Rg6 {[%emt 0:00:00]} Ra7 {[%emt 0:00:00]} 69. Kh6 {
[%emt 0:00:00]} Bf5 {[%emt 0:00:00]} 70. Rg7 {[%emt 0:00:00]} Ra4 {[%emt 0:00:
00]} 71. Kg5 {[%emt 0:00:00]} Be6 {[%emt 0:00:00]} 72. Rg6 {[%emt 0:00:00]} Ra7
{[%emt 0:00:00]} 73. Kh6 {[%emt 0:00:00]} Kf5 {[%emt 0:00:00]} 74. Rg5+ {
[%emt 0:00:00]} Kf4 {[%emt 0:00:00]} 75. Rg7 {[%emt 0:00:00]} Ra8 {[%emt 0:00:
00]} 76. Kg6 {[%emt 0:00:00]} Bf5+ {[%emt 0:00:00]} 77. Kf6 {[%emt 0:00:00]}
Ra6+ {[%emt 0:00:00]} 78. Ke7 {[%emt 0:00:00]} Ke5 {[%emt 0:00:00]} 79. Kf7 {
[%emt 0:00:00]} Rb6 {[%emt 0:00:00]} 80. Ke7 {[%emt 0:00:00]} Bg6 {[%emt 0:00:
00]} 81. Kf8 {[%emt 0:00:00]} Kf6 {[%emt 0:00:00]} 82. Rf7+ {[%emt 0:00:00]}
Kg5 {[%emt 0:00:00]} 83. Rg7 {[%emt 0:00:00]} Kh6 {[%emt 0:00:00]} 84. Rc7 {
[%emt 0:00:00]} Re6 {[%emt 0:00:00]} 85. Re7 {[%emt 0:00:00]} Rf6+ {[%emt 0:00:
00]} 86. Kg8 {[%emt 0:00:00]} Bf5 {[%emt 0:00:00]} 87. Re8 {[%emt 0:00:00]} Bd7
{[%emt 0:00:00]} 88. Rd8 {[%emt 0:00:00]} Be6+ {[%emt 0:00:00]} 89. Kh8 {
[%emt 0:00:00]} Kg6 {[%emt 0:00:00]} 90. Re8 {[%emt 0:00:00]} Kf7 {[%emt 0:00:
00]} 0-1